bitfinex/quotes_SOLUSD_20251118
["timestamp","ask_amount","ask_price","bid_price","bid_amount"]
[1763495131306,0.69,141.58,141.54,9.6591287]
[1763495131675,0.69,141.58,141.54,10.3191287]
[1763495132392,4.90412617,141.59,141.55,10.3191287]
[1763495132576,4.89,141.59,141.55,9.6591287]
[1763495132777,0.69,141.58,141.55,9.6591287]
[1763495133785,0.69,141.58,141.54,10.3191287]
[1763495134200,11.05325487,141.58,141.53,9.6591287]
[1763495134390,9.6591287,141.57,141.52,0.66]
[1763495134700,13.8591287,141.56,141.51,9.6591287]
[1763495134996,14.5491287,141.56,141.51,9.6591287]
[1763495135188,14.5491287,141.56,141.51,10.3191287]
[1763495135516,0.69,141.55,141.51,10.3191287]
[1763495135883,4.2,141.56,141.51,9.6591287]
[1763495136205,4.2,141.56,141.53,9.6591287]
[1763495136576,4.89,141.57,141.53,10.3191287]
[1763495136880,4.89,141.57,141.53,9.6591287]
[1763495137072,0.69,141.56,141.53,9.6591287]
[1763495137522,4.2,141.57,141.53,10.3191287]
[1763495137675,0.69,141.56,141.53,9.6591287]
[1763495138503,4.2,141.57,141.53,9.6591287]
[1763495138802,4.2,141.6,141.55,9.6591287]
[1763495138997,32.6700887,141.6,141.55,9.6591287]
[1763495139185,31.9800887,141.6,141.55,10.3191287]
[1763495139393,0.69,141.59,141.55,10.3191287]
[1763495140003,22.32096,141.6,141.56,10.3191287]
[1763495140405,18.81096,141.6,141.56,10.3191287]
[1763495141104,18.81096,141.6,141.54,9.6591287]
[1763495141105,10.3491287,141.59,141.54,9.6591287]
[1763495141305,1.39412617,141.59,141.54,10.3191287]
[1763495141483,1.39412617,141.59,141.55,9.6591287]
[1763495141681,0.69,141.58,141.55,9.6591287]
[1763495141991,0.69,141.58,141.54,9.6591287]
[1763495142302,0.69,141.58,141.54,10.3191287]
[1763495143219,9.6591287,141.56,141.5,0.69]
[1763495143519,13.8591287,141.56,141.51,9.6591287]
[1763495143686,14.5291287,141.56,141.51,9.6591287]
[1763495143885,0.67,141.55,141.51,10.3491287]
[1763495145593,10.3291287,141.55,141.5,20.13795639]
[1763495145797,10.3291287,141.55,141.51,0.69]
[1763495146306,10.3291287,141.55,141.5,19.44795639]
[1763495146495,0.67,141.55,141.51,10.3491287]
[1763495147504,0.67,141.55,141.52,0.69]
[1763495147711,0.67,141.55,141.51,10.3491287]
[1763495148299,0.67,141.55,141.52,9.6591287]
[1763495148504,0.67,141.55,141.51,10.3491287]
[1763495149312,0.67,141.55,141.51,0.69]
[1763495149500,0.67,141.55,141.51,10.3491287]
[1763495151190,0.67,141.55,141.52,9.6591287]
[1763495151698,0.67,141.55,141.51,10.3491287]
[1763495152710,4.90412617,141.56,141.52,9.6591287]
[1763495152888,4.90412617,141.56,141.52,10.3491287]
[1763495152889,5.57412617,141.56,141.52,10.3491287]
[1763495153094,0.67,141.55,141.52,0.69]
[1763495153599,0.67,141.55,141.51,9.6591287]
[1763495153801,0.67,141.55,141.51,10.3491287]
[1763495154840,0.67,141.55,141.52,5.78411301]
[1763495155311,0.67,141.59,141.54,5.78411301]
[1763495155517,0.67,141.59,141.56,5.78411301]
[1763495155716,4.87,141.59,141.55,5.78411301]
[1763495155898,0.67,141.58,141.55,5.78411301]
[1763495156092,0.67,141.58,141.53,0.69]
[1763495156298,5.78411301,141.57,141.52,9.98411301]
[1763495156795,0.67,141.56,141.52,9.98411301]
[1763495157321,0.67,141.56,141.52,5.78411301]
[1763495159903,1.37412617,141.56,141.52,5.78411301]
[1763495160417,0.67,141.55,141.51,6.47411301]
[1763495160823,0.67,141.55,141.51,5.78411301]
[1763495161116,5.78411301,141.54,141.49,4.2]
[1763495161320,5.78411301,141.54,141.49,9.98411301]
[1763495161618,0.67,141.53,141.49,6.47411301]
[1763495161837,0.67,141.54,141.5,6.47411301]
[1763495162005,0.67,141.53,141.5,5.78411301]
[1763495162329,0.67,141.55,141.52,5.78411301]
[1763495163097,0.67,141.55,141.51,6.47411301]
[1763495163595,0.67,141.55,141.51,5.78411301]
[1763495163798,6.45411301,141.55,141.5,9.98411301]
[1763495164014,6.48823918,141.54,141.48,13.98882769]
[1763495164221,11.35823918,141.54,141.48,19.7729407]
[1763495164425,0.67,141.53,141.48,20.4629407]
[1763495164728,0.67,141.53,141.49,5.78411301]
[1763495164897,0.67,141.53,141.49,2.22192906]
[1763495165101,2.89192906,141.53,141.48,6.42192906]
[1763495165525,0.67,141.52,141.48,6.42192906]
[1763495165931,0.67,141.52,141.48,7.11192906]
[1763495167732,0.67,141.52,141.49,2.22192906]
[1763495169728,5.57412617,141.54,141.49,2.22192906]
[1763495169933,0.67,141.54,141.51,2.22192906]
[1763495170831,4.87,141.55,141.51,2.91192906]
[1763495171128,4.2,141.55,141.51,2.91192906]
[1763495171334,0.67,141.54,141.51,2.91192906]
[1763495172033,0.67,141.54,141.51,2.22192906]
[1763495172531,0.67,141.54,141.5,2.91192906]
[1763495172939,2.92605523,141.53,141.46,21.17249872]
[1763495173108,2.92605523,141.53,141.48,2.22192906]
[1763495173312,0.69,141.52,141.48,2.22192906]
[1763495173819,0.69,141.52,141.47,6.42192906]
[1763495174018,0.69,141.52,141.46,0.69]
[1763495174019,2.91192906,141.52,141.46,2.22192906]
[1763495174232,2.91192906,141.52,141.46,2.91192906]
[1763495174425,0.69,141.51,141.46,2.91192906]
[1763495174819,2.91192906,141.51,141.46,0.69]
[1763495175130,0.69,141.5,141.46,0.69]
[1763495175445,0.69,141.5,141.46,2.91192906]
[1763495175815,1.39412617,141.52,141.47,0.69]
[1763495176126,0.69,141.51,141.47,2.91192906]
[1763495176534,0.69,141.51,141.47,2.22192906]
[1763495177035,0.69,141.51,141.47,2.91192906]
[1763495177414,0.69,141.51,141.47,0.69]
[1763495177814,0.70412617,141.52,141.47,2.91192906]
[1763495178016,0.70412617,141.56,141.47,0.69]
[1763495178227,2.22192906,141.53,141.48,2.22192906]
[1763495178542,2.22192906,141.53,141.47,0.69]
[1763495178727,0.69,141.52,141.48,2.22192906]
[1763495179437,0.69,141.52,141.47,0.69]
[1763495179639,0.69,141.52,141.47,2.91192906]
[1763495179940,0.69,141.52,141.48,2.22192906]
[1763495180741,0.69,141.52,141.46,2.22192906]
[1763495180742,19.51508617,141.52,141.46,2.22192906]
[1763495180916,2.22192906,141.51,141.46,2.22192906]
[1763495181223,2.89192906,141.51,141.46,2.22192906]
[1763495181540,0.67,141.5,141.46,2.88192906]
[1763495181754,0.67,141.5,141.45,6.42192906]
[1763495181920,0.67,141.5,141.45,7.08192906]
[1763495182528,0.67,141.5,141.45,6.42192906]
[1763495182728,0.67,141.5,141.43,27.90978769]
[1763495182729,2.89192906,141.5,141.43,9.78882769]
[1763495182947,2.22192906,141.49,141.44,0.66]
[1763495183133,0.67,141.49,141.44,2.88192906]
[1763495183340,2.22192906,141.5,141.44,2.88192906]
[1763495183341,0.67,141.48,141.44,2.88192906]
[1763495184220,25.24701523,141.51,141.46,2.22192906]
[1763495184425,2.89192906,141.5,141.45,2.88192906]
[1763495185522,0.67,141.49,141.45,2.88192906]
[1763495185722,0.67,141.49,141.45,0.66]
[1763495185925,0.67,141.49,141.45,2.88192906]
[1763495186519,0.67,141.49,141.46,2.22192906]
[1763495187137,0.67,141.49,141.44,2.22192906]
[1763495187341,0.67,141.49,141.45,2.22192906]
[1763495190440,2.22192906,141.48,141.43,2.22192906]
[1763495190735,2.22192906,141.48,141.42,7.08192906]
[1763495190938,2.89192906,141.47,141.42,4.2]
[1763495191130,2.22192906,141.45,141.4,2.32192906]
[1763495191530,2.89192906,141.44,141.4,0.1]
[1763495192150,0.67,141.43,141.4,0.1]
[1763495195654,2.89192906,141.43,141.4,0.1]
[1763495196044,4.87,141.44,141.4,0.1]
[1763495196356,0.67,141.43,141.4,0.1]
[1763495199252,2.89192906,141.43,141.4,0.1]
[1763495199448,2.22192906,141.41,141.4,0.1]
[1763495199930,0.67,141.41,141.4,0.1]
[1763495203532,2.89192906,141.41,141.4,0.1]
[1763495204757,0.67,141.41,141.4,0.1]
[1763495204945,0.66,141.41,141.4,0.1]
[1763495205145,4.2,141.42,141.4,0.1]
[1763495205350,0.66,141.42,141.4,0.1]
[1763495205649,25.20288906,141.44,141.4,0.1]
[1763495205861,0.66,141.43,141.4,3.00192906]
[1763495206040,0.66,141.43,141.4,2.32192906]
[1763495207565,18.12096,141.44,141.4,2.32192906]
[1763495207566,18.12096,141.44,141.41,0.68]
[1763495207961,18.12096,141.44,141.41,2.90192906]
[1763495208136,0.66,141.44,141.4,2.32192906]
[1763495208457,1.36412617,141.45,141.41,2.90192906]
[1763495208656,1.36412617,141.45,141.41,2.22192906]
[1763495208845,0.66,141.44,141.41,2.22192906]
[1763495209840,0.66,141.44,141.4,3.00192906]
[1763495210957,0.66,141.44,141.41,2.22192906]
[1763495211475,0.66,141.45,141.41,2.90192906]
[1763495211761,0.70412617,141.48,141.4,18.22096]
[1763495211762,0.66,141.46,141.43,2.22192906]
[1763495212143,5.56412617,141.48,141.44,2.90192906]
[1763495212342,1.36412617,141.48,141.44,2.90192906]
[1763495212548,0.66,141.47,141.44,2.90192906]
[1763495212748,0.66,141.47,141.44,2.22192906]
[1763495214172,7.78605523,141.49,141.44,2.90192906]
[1763495214374,0.66,141.48,141.44,2.90192906]
[1763495214766,0.66,141.48,141.44,0.68]
[1763495214952,0.66,141.48,141.44,4.15404793]
[1763495215448,8.3781741,141.49,141.44,4.15404793]
[1763495215449,0.66,141.49,141.46,3.47404793]
[1763495215774,4.2,141.5,141.45,0.68]
[1763495215945,0.66,141.48,141.42,18.80096]
[1763495216138,0.66,141.48,141.45,3.47404793]
[1763495216361,0.66,141.48,141.45,4.15404793]
[1763495216563,0.66,141.48,141.46,3.47404793]
[1763495216767,0.66,141.48,141.45,3.47404793]
[1763495218355,0.66,141.48,141.44,3.47404793]
[1763495218755,0.70412617,141.47,141.42,18.12096]
[1763495218956,3.47404793,141.45,141.4,3.57404793]
[1763495219155,4.1781741,141.45,141.4,3.57404793]
[1763495219375,0.66,141.44,141.4,3.57404793]
[1763495219581,0.66,141.44,141.42,3.47404793]
[1763495219746,0.66,141.45,141.41,0.68]
[1763495219947,4.86,141.47,141.44,3.47404793]
[1763495220768,0.66,141.5,141.45,4.15404793]
[1763495220976,0.66,141.5,141.47,3.47404793]
[1763495222974,0.66,141.5,141.45,0.68]
[1763495222975,0.66,141.5,141.48,3.47404793]
[1763495223181,5.56412617,141.52,141.49,3.47404793]
[1763495223350,0.66,141.52,141.49,3.47404793]
[1763495223552,0.66,141.51,141.49,3.47404793]
[1763495224066,0.66,141.51,141.48,3.47404793]
[1763495224468,0.66,141.51,141.47,3.47404793]
[1763495225255,1.36412617,141.53,141.49,3.47404793]
[1763495225577,22.9591341,141.53,141.48,3.47404793]
[1763495225749,3.47404793,141.51,141.46,3.47404793]
[1763495226078,0.70412617,141.5,141.46,3.47404793]
[1763495226259,1.36412617,141.5,141.46,3.47404793]
[1763495226750,0.66,141.49,141.45,3.47404793]
[1763495227159,0.66,141.49,141.46,3.47404793]
[1763495227362,0.66,141.49,141.45,3.47404793]
[1763495227677,4.1781741,141.48,141.42,4.15404793]
[1763495227970,0.70412617,141.48,141.44,3.47404793]
[1763495228376,0.66,141.47,141.44,3.47404793]
[1763495229271,0.66,141.47,141.45,3.47404793]
[1763495229855,0.66,141.47,141.44,3.47404793]
[1763495230675,0.66,141.47,141.45,3.47404793]
[1763495230854,23.02508617,141.49,141.45,3.47404793]
[1763495231051,0.70412617,141.51,141.47,3.47404793]
[1763495231260,4.2,141.5,141.47,3.47404793]
[1763495231573,1.36412617,141.51,141.48,3.47404793]
[1763495231781,0.66,141.5,141.47,3.47404793]
[1763495232648,0.71,141.52,141.49,3.47404793]
[1763495232871,1.41412617,141.53,141.5,3.47404793]
[1763495233250,0.71,141.53,141.5,3.47404793]
[1763495234074,0.71,141.53,141.49,3.47404793]
[1763495234273,0.71,141.53,141.45,10.50882769]
[1763495234473,4.1781741,141.52,141.47,3.47404793]
[1763495234780,4.18404793,141.51,141.46,3.47404793]
[1763495234956,1.41412617,141.5,141.46,3.47404793]
[1763495235154,3.47404793,141.49,141.44,3.47404793]
[1763495235362,19.53508617,141.5,141.47,3.47404793]
[1763495235565,0.71,141.49,141.46,3.47404793]
[1763495235766,0.71,141.51,141.45,18.84096]
[1763495235973,4.91,141.51,141.48,3.47404793]
[1763495236170,0.71,141.51,141.46,0.72]
[1763495236461,4.91,141.53,141.5,3.47404793]
[1763495237260,0.71,141.52,141.5,3.47404793]
[1763495238380,0.71,141.52,141.49,3.47404793]
[1763495238585,3.47404793,141.5,141.45,3.47404793]
[1763495238755,3.47404793,141.5,141.45,21.59500793]
[1763495238952,1.41412617,141.49,141.45,21.59500793]
[1763495239170,1.41412617,141.49,141.45,3.47404793]
[1763495239378,0.71,141.48,141.45,3.47404793]
[1763495239569,1942.33540112,141.4,141.39,9.78882769]
[1763495239767,1879.87365714,141.4,141.39,17.46287562]
[1763495240082,1879.87365714,141.4,141.39,27.25170331]
[1763495240581,1837.35895855,141.4,141.39,27.25170331]
[1763495240788,1774.89721457,141.4,141.39,27.25170331]
[1763495241894,1774.89721457,141.4,141.39,27.36170331]
[1763495242809,1712.43547059,141.4,141.39,27.36170331]
[1763495242970,1661.094656,141.4,141.39,30.83575124]
[1763495243173,1625.00978166,141.4,141.39,37.90838721]
[1763495243389,1582.49508307,141.4,141.39,37.90838721]
[1763495243890,1468.70332846,141.4,141.39,37.90838721]
[1763495244203,1413.99455949,141.4,141.39,37.90838721]
[1763495244441,1407.54178521,141.4,141.39,37.90838721]
[1763495244694,1365.03789058,141.4,141.39,37.90838721]
[1763495244886,1251.24613597,141.4,141.39,37.90838721]
[1763495245273,1196.537367,141.4,141.39,37.90838721]
[1763495245698,1154.03347237,141.4,141.39,37.90838721]
[1763495245867,1082.74561239,141.4,141.39,33.70838721]
[1763495246069,1082.74561239,141.4,141.39,30.83575124]
[1763495246298,1082.74561239,141.4,141.39,34.43433928]
[1763495246496,1082.74561239,141.4,141.39,23.16170331]
[1763495246706,1082.74561239,141.4,141.39,27.36170331]
[1763495247194,1020.28386841,141.4,141.39,27.36170331]
[1763495247908,957.82212443,141.4,141.39,27.36170331]
[1763495248985,895.36038045,141.4,141.39,27.36170331]
[1763495249994,832.89863647,141.4,141.39,27.36170331]
[1763495250389,824.07252047,141.4,141.39,34.43433928]
[1763495250784,824.07252047,141.4,141.39,27.36170331]
[1763495251290,824.07252047,141.4,141.39,89.16170331]
[1763495252486,761.61077649,141.4,141.39,89.16170331]
[1763495253391,699.14903251,141.4,141.39,89.16170331]
[1763495254308,636.68728853,141.4,141.39,110.42170331]
[1763495254609,636.68728853,141.4,141.39,89.16170331]
[1763495254815,636.68728853,141.4,141.39,96.23433928]
[1763495254989,636.68728853,141.4,141.39,89.16170331]
[1763495255410,574.22554455,141.4,141.39,89.16170331]
[1763495255916,574.22554455,141.4,141.39,96.23433928]
[1763495256101,574.22554455,141.4,141.39,89.16170331]
[1763495256416,574.22554455,141.4,141.39,96.23433928]
[1763495256906,574.22554455,141.4,141.39,89.16170331]
[1763495257109,574.22554455,141.4,141.39,199.33433928]
[1763495258412,511.76380057,141.4,141.39,199.33433928]
[1763495258829,469.25087473,141.4,141.39,96.23433928]
[1763495259488,406.78913075,141.4,141.39,96.23433928]
[1763495260411,344.32738677,141.4,141.39,96.23433928]
[1763495260615,278.05349214,141.4,141.39,96.23433928]
[1763495261403,164.39868191,141.4,141.39,96.23433928]
[1763495261716,155.57256591,141.4,141.39,96.23433928]
[1763495261892,103.6393678,141.4,141.39,96.23433928]
[1763495262095,93.91608244,141.4,141.39,122.55095859]
[1763495262295,0.68,141.5,141.49,18.12096]
[1763495262622,0.68,141.5,141.49,4.2]
[1763495262816,0.68,141.5,141.49,22.32096]
[1763495262999,0.68,141.5,141.49,25.79500793]
[1763495263397,0.69,141.51,141.49,25.79500793]
[1763495264720,0.69,141.51,141.5,3.47404793]
[1763495266394,0.69,141.51,141.49,29.26905586]
[1763495266601,0.69,141.51,141.49,25.79500793]
[1763495266801,0.69,141.51,141.49,4.2]
[1763495267014,0.69,141.51,141.49,11.14809586]
[1763495267718,0.69,141.51,141.49,7.67404793]
[1763495268229,0.69,141.51,141.49,4.2]
[1763495269030,0.69,141.51,141.49,7.67404793]
[1763495269529,0.69,141.52,141.5,3.47404793]
[1763495269828,0.69,141.52,141.51,25.79500793]
[1763495270414,0.69,141.52,141.51,4.2]
[1763495270796,0.69,141.52,141.51,22.32096]
[1763495271027,0.69,141.52,141.51,17.40096]
[1763495271222,0.69,141.52,141.51,21.60096]
[1763495271535,0.69,141.52,141.51,4.2]
[1763495271829,4.16404793,141.52,141.49,4.2]
[1763495272334,0.69,141.51,141.49,4.2]
[1763495273219,0.69,141.51,141.5,18.12096]
[1763495277596,0.69,141.52,141.5,18.12096]
[1763495278330,2.91146015,141.52,141.5,18.12096]
[1763495278707,0.69,141.51,141.5,18.12096]
[1763495279127,0.69,141.51,141.5,22.32096]
[1763495280312,0.69,141.51,141.46,2.83356356]
[1763495280516,2.22146015,141.5,141.47,4.2]
[1763495280703,2.22146015,141.5,141.47,22.32096]
[1763495280899,0.69,141.49,141.47,22.32096]
[1763495281105,2.91146015,141.49,141.47,4.2]
[1763495281639,2.91146015,141.48,141.47,4.2]
[1763495281800,0.69,141.48,141.47,4.2]
[1763495282198,2.22146015,141.51,141.47,4.2]
[1763495282412,0.90412617,141.55,141.47,4.2]
[1763495282413,0.69,141.5,141.47,22.32096]
[1763495283611,2.91146015,141.5,141.47,22.32096]
[1763495283814,0.69,141.49,141.47,22.32096]
[1763495284012,2.91146015,141.49,141.47,22.32096]
[1763495284330,2.22146015,141.48,141.47,22.32096]
[1763495284534,2.91146015,141.48,141.47,22.32096]
[1763495284929,0.69,141.48,141.47,22.32096]
[1763495285426,0.90412617,141.55,141.47,22.32096]
[1763495285427,0.69,141.5,141.47,22.32096]
[1763495286109,2.91146015,141.5,141.47,22.32096]
[1763495286627,0.69,141.49,141.47,22.32096]
[1763495286823,0.69,141.49,141.45,18.12096]
[1763495286824,2.22146015,141.48,141.45,18.12096]
[1763495287025,2.22146015,141.47,141.45,18.12096]
[1763495287527,0.69,141.46,141.45,18.12096]
[1763495289034,0.69,141.46,141.4,18.67466829]
[1763495289035,2.91146015,141.46,141.43,18.12096]
[1763495289414,0.69,141.45,141.43,18.12096]
[1763495290432,0.69,141.45,141.42,22.32096]
[1763495291131,0.69,141.46,141.42,25.24242015]
[1763495291614,0.69,141.45,141.42,25.24242015]
[1763495291811,0.69,141.48,141.43,2.92146015]
[1763495292129,0.69,141.48,141.45,18.12096]
[1763495292337,0.69,141.48,141.46,4.2]
[1763495292525,0.71,141.5,141.46,4.92]
[1763495292731,0.71,141.49,141.46,4.2]
[1763495293636,0.71,141.49,141.46,6.42146015]
[1763495294350,0.71,141.51,141.47,2.94146015]
[1763495294560,0.71,141.51,141.48,4.2]
[1763495296232,2.93146015,141.51,141.48,4.2]
[1763495296642,0.71,141.5,141.48,4.2]
[1763495297820,2.93146015,141.5,141.48,4.2]
[1763495298026,0.71,141.5,141.47,18.12096]
[1763495298221,0.71,141.49,141.47,18.12096]
[1763495300753,2.93146015,141.49,141.45,18.12096]
[1763495301117,2.90146015,141.48,141.45,18.12096]
[1763495301518,2.90146015,141.47,141.42,4.2]
[1763495301942,2.90146015,141.46,141.42,4.2]
[1763495302112,2.90146015,141.46,141.42,22.32096]
[1763495302425,0.68,141.45,141.42,22.32096]
[1763495302614,0.68,141.45,141.42,4.2]
[1763495302615,2.90146015,141.45,141.42,4.2]
[1763495302814,0.68,141.45,141.42,4.2]
[1763495303039,2.22146015,141.46,141.42,4.2]
[1763495303040,0.68,141.44,141.42,4.2]
[1763495305521,2.90146015,141.44,141.41,18.12096]
[1763495305941,0.68,141.43,141.41,18.12096]
[1763495308827,2.22146015,141.46,141.42,0.71]
[1763495309033,2.90146015,141.47,141.42,0.71]
[1763495309227,2.90146015,141.47,141.42,4.2]
[1763495309422,0.68,141.46,141.42,4.2]
[1763495310948,2.22146015,141.48,141.43,0.71]
[1763495311147,2.22146015,141.48,141.43,2.93146015]
[1763495311330,0.2,141.55,141.45,18.12096]
[1763495311331,2.22146015,141.5,141.45,18.12096]
[1763495311530,0.68,141.5,141.45,20.34242015]
[1763495311736,0.68,141.49,141.46,4.91]
[1763495311931,0.68,141.51,141.46,7.13146015]
[1763495312136,0.68,141.5,141.47,0.71]
[1763495313148,0.68,141.5,141.47,2.22146015]
[1763495313850,0.68,141.5,141.46,7.13146015]
[1763495314458,2.22146015,141.49,141.46,4.2]
[1763495314648,2.22146015,141.49,141.46,22.32096]
[1763495314852,0.68,141.48,141.46,18.12096]
[1763495315048,2.90146015,141.48,141.46,18.12096]
[1763495315439,0.68,141.47,141.46,18.12096]
[1763495315639,0.68,141.47,141.44,22.32096]
[1763495315843,0.68,141.47,141.44,23.03096]
[1763495316162,0.68,141.47,141.45,18.12096]
[1763495319487,2.90146015,141.47,141.44,4.2]
[1763495319776,2.22146015,141.45,141.4,2.83476843]
[1763495319949,2.22146015,141.41,141.38,0.1]
[1763495320147,0.68,141.41,141.38,0.1]
[1763495320447,0.68,141.41,141.39,18.12096]
[1763495322259,0.68,141.41,141.38,0.1]
[1763495322260,2.22146015,141.4,141.38,0.1]
[1763495322568,2.22146015,141.39,141.38,0.1]
[1763495322944,2.89146015,141.39,141.38,0.1]
[1763495323750,9.78882769,141.45,141.38,0.1]
[1763495323957,0.67,141.41,141.38,0.1]
[1763495324151,2.89146015,141.41,141.38,0.1]
[1763495324479,9.78882769,141.43,141.38,0.1]
[1763495324651,0.67,141.41,141.38,0.1]
[1763495324850,0.67,141.41,141.38,0.81]
[1763495325269,0.67,141.41,141.38,0.1]
[1763495326364,2.89146015,141.41,141.38,0.1]
[1763495326568,2.22146015,141.4,141.38,0.1]
[1763495326757,6.46650626,141.4,141.38,0.1]
[1763495327077,0.67,141.4,141.38,0.1]
[1763495327461,0.67,141.39,141.38,0.1]
[1763495328075,6.46650626,141.41,141.38,0.1]
[1763495328253,0.67,141.4,141.38,0.1]
[1763495330151,15.58533395,141.39,141.38,0.1]
[1763495330355,6.46650626,141.4,141.38,0.1]
[1763495330571,0.67,141.39,141.38,0.1]
[1763495331655,6.46650626,141.41,141.38,0.1]
[1763495331959,0.67,141.4,141.38,0.1]
[1763495332668,0.67,141.42,141.38,6.60650626]
[1763495332867,0.67,141.42,141.39,5.79650626]
[1763495333061,0.67,141.42,141.39,6.50650626]
[1763495333363,10.66650626,141.45,141.4,0.71]
[1763495333763,0.67,141.44,141.4,6.50650626]
[1763495334167,6.46650626,141.44,141.38,0.81]
[1763495334498,5.79650626,141.43,141.38,6.60650626]
[1763495334681,6.46650626,141.43,141.38,6.60650626]
[1763495334976,0.67,141.42,141.38,6.60650626]
[1763495335178,0.67,141.42,141.38,0.1]
[1763495335474,0.67,141.42,141.39,18.12096]
[1763495336555,6.46650626,141.42,141.39,18.12096]
[1763495336779,10.35540257,141.42,141.39,18.12096]
[1763495337081,0.67,141.41,141.39,18.12096]
[1763495338276,13.98882769,141.45,141.39,18.12096]
[1763495338480,9.68540257,141.43,141.39,18.12096]
[1763495338868,0.67,141.43,141.4,0.71]
[1763495339179,0.67,141.43,141.39,18.83096]
[1763495340254,10.35540257,141.45,141.4,0.71]
[1763495340476,9.78882769,141.47,141.41,27.80636257]
[1763495340477,9.68540257,141.47,141.41,27.80636257]
[1763495340678,0.67,141.49,141.43,9.68540257]
[1763495340878,10.35540257,141.49,141.44,0.71]
[1763495341258,0.67,141.48,141.44,0.71]
[1763495342170,1.37412617,141.51,141.44,0.71]
[1763495342481,0.67,141.5,141.45,9.68540257]
[1763495342873,0.67,141.5,141.46,0.71]
[1763495343180,10.38952874,141.49,141.43,32.71636257]
[1763495343380,9.68540257,141.48,141.43,14.59540257]
[1763495343566,10.35540257,141.48,141.43,32.71636257]
[1763495343762,10.35540257,141.48,141.44,0.71]
[1763495344372,0.67,141.48,141.44,0.71]
[1763495344576,10.35540257,141.5,141.45,9.68540257]
[1763495344765,0.67,141.49,141.44,0.71]
[1763495344964,10.35540257,141.49,141.44,10.39540257]
[1763495345482,10.35540257,141.49,141.45,0.71]
[1763495345673,0.67,141.48,141.45,0.71]
[1763495346073,9.68540257,141.49,141.45,0.71]
[1763495346274,10.35540257,141.5,141.45,0.71]
[1763495346889,10.35540257,141.5,141.44,9.68540257]
[1763495346890,9.68540257,141.49,141.44,9.68540257]
[1763495347269,9.68540257,141.49,141.44,0.71]
[1763495347669,9.68540257,141.49,141.45,0.71]
[1763495347884,0.67,141.5,141.45,0.71]
[1763495347885,10.35540257,141.5,141.45,0.71]
[1763495348795,0.67,141.52,141.47,3.47251985]
[1763495348980,0.67,141.52,141.48,0.71]
[1763495351179,0.67,141.52,141.48,4.18251985]
[1763495351376,0.67,141.52,141.47,21.59347985]
[1763495351581,0.67,141.52,141.47,22.30347985]
[1763495352876,4.14251985,141.52,141.47,18.83096]
[1763495353083,0.67,141.52,141.48,0.68]
[1763495353400,4.2,141.54,141.49,3.47251985]
[1763495353401,0.71,141.54,141.49,3.47251985]
[1763495353577,0.71,141.53,141.5,0.68]
[1763495354276,0.71,141.53,141.49,7.67251985]
[1763495354485,0.71,141.53,141.49,8.35251985]
[1763495354700,4.88664602,141.53,141.49,4.2]
[1763495354993,0.71,141.52,141.47,8.35251985]
[1763495355291,0.71,141.52,141.47,26.47347985]
[1763495355492,0.71,141.52,141.48,0.68]
[1763495355894,0.71,141.52,141.47,25.79347985]
[1763495356100,4.18251985,141.52,141.47,26.47347985]
[1763495356394,3.47251985,141.51,141.47,18.12096]
[1763495356597,4.18251985,141.51,141.45,8.35251985]
[1763495356899,0.71,141.5,141.46,18.12096]
[1763495357395,3.47251985,141.51,141.46,18.12096]
[1763495357396,3.47251985,141.54,141.49,3.47251985]
[1763495357573,0.71,141.53,141.49,3.47251985]
[1763495357774,0.71,141.53,141.5,0.68]
[1763495357975,0.71,141.53,141.5,4.15251985]
[1763495359001,4.18251985,141.53,141.48,4.2]
[1763495359388,0.71,141.52,141.48,4.2]